[Event "Late-Titled-Tuesday-Blitz-January-23-2024"]
[Site "Chess.com"]
[Date "2024.01.23"]
[Round "1"]
[White "only_strong_moves"]
[Black "Oleksandr_Bortnyk"]
[Result "0-1"]
[WhiteElo "2533"]
[BlackElo "3073"]
[TimeControl "180+1"]
[EndTime "14:07:00 PST"]
[Termination "Oleksandr_Bortnyk won by resignation"]

1. e4 {[%clk 0:03:00.9]} 1... g6 {[%clk 0:02:53.9]} 2. d4 {[%clk 0:02:58.7]}
2... Bg7 {[%clk 0:02:53.7]} 3. Nc3 {[%clk 0:02:52.1]} 3... c6 {[%clk 0:02:53.8]}
4. f4 {[%clk 0:02:49.2]} 4... d5 {[%clk 0:02:53.3]} 5. e5 {[%clk 0:02:46.8]}
5... h5 {[%clk 0:02:53.5]} 6. Bd3 {[%clk 0:02:43.7]} 6... Nh6 {[%clk 0:02:53.2]}
7. Be3 {[%clk 0:02:40.7]} 7... Ng4 {[%clk 0:02:46.7]} 8. Bc1 {[%clk 0:02:38.2]}
8... Bf5 {[%clk 0:02:40.8]} 9. h3 {[%clk 0:02:22.7]} 9... Nh6 {[%clk 0:02:40.4]}
10. Be3 {[%clk 0:02:17.2]} 10... Bxd3 {[%clk 0:02:40.2]} 11. Qxd3 {[%clk
0:02:15.9]} 11... Nf5 {[%clk 0:02:41.1]} 12. Bf2 {[%clk 0:02:15.8]} 12... e6
{[%clk 0:02:41.5]} 13. Nge2 {[%clk 0:02:12.2]} 13... h4 {[%clk 0:02:41]} 14.
O-O-O {[%clk 0:02:12.2]} 14... Bf8 {[%clk 0:02:41]} 15. Kb1 {[%clk 0:02:03]}
15... b5 {[%clk 0:02:40]} 16. g4 {[%clk 0:01:46.4]} 16... hxg3 {[%clk
0:02:39.5]} 17. Nxg3 {[%clk 0:01:46.7]} 17... b4 {[%clk 0:02:38.6]} 18. Na4
{[%clk 0:01:45.2]} 18... Qa5 {[%clk 0:02:37.9]} 19. b3 {[%clk 0:01:44.9]} 19...
Nd7 {[%clk 0:02:37.4]} 20. Nxf5 {[%clk 0:01:41.9]} 20... gxf5 {[%clk 0:02:38.3]}
21. Be1 {[%clk 0:01:39.7]} 21... Nb6 {[%clk 0:02:37.5]} 22. Nb2 {[%clk
0:01:33.4]} 22... Rc8 {[%clk 0:02:26.8]} 23. c4 {[%clk 0:01:31.8]} 23... bxc3
{[%clk 0:02:21.7]} 24. Bxc3 {[%clk 0:01:32.2]} 24... Bb4 {[%clk 0:02:22.1]} 25.
Rc1 {[%clk 0:01:29.5]} 25... c5 {[%clk 0:02:14.8]} 26. dxc5 {[%clk 0:01:20.7]}
26... Rxc5 {[%clk 0:02:11.1]} 27. Bd4 {[%clk 0:01:15.3]} 27... Rxc1+ {[%clk
0:02:03.4]} 28. Rxc1 {[%clk 0:01:16.2]} 28... Kd7 {[%clk 0:02:01]} 29. Bxb6
{[%clk 0:01:06.1]} 29... axb6 {[%clk 0:01:53.1]} 30. Qc2 {[%clk 0:01:04.4]}
30... Bc5 {[%clk 0:01:45.6]} 31. Nd3 {[%clk 0:01:02.5]} 31... Rxh3 {[%clk
0:01:43.2]} 32. Nxc5+ {[%clk 0:00:42.1]} 32... bxc5 {[%clk 0:01:44.1]} 33. Qxc5
{[%clk 0:00:42.2]} 33... Qxc5 {[%clk 0:01:44.5]} 34. Rxc5 {[%clk 0:00:42.8]}
34... Rf3 {[%clk 0:01:42.3]} 35. a4 {[%clk 0:00:41.5]} 35... Rxb3+ {[%clk
0:01:39.5]} 36. Ka2 {[%clk 0:00:42]} 36... Rb4 {[%clk 0:01:38.8]} 37. Ka3 {[%clk
0:00:41.1]} 37... Rxf4 {[%clk 0:01:38.8]} 38. a5 {[%clk 0:00:41.3]} 38... Rc4
{[%clk 0:01:16.1]} 39. Rb5 {[%clk 0:00:36.6]} 39... Rc1 {[%clk 0:01:04.4]} 40.
Rb7+ {[%clk 0:00:23.7]} 40... Kc6 {[%clk 0:01:04.2]} 41. Rxf7 {[%clk 0:00:18.5]}
41... Ra1+ {[%clk 0:01:04.2]} 42. Kb4 {[%clk 0:00:17.6]} 42... d4 {[%clk
0:01:04.6]} 43. Re7 {[%clk 0:00:17.6]} 43... Kd5 {[%clk 0:01:05]} 44. Kb5 {[%clk
0:00:17.3]} 44... Rb1+ {[%clk 0:01:03.2]} 45. Ka4 {[%clk 0:00:16.8]} 45... Kxe5
{[%clk 0:01:03.3]} 46. Rc7 {[%clk 0:00:16.2]} 46... d3 {[%clk 0:01:03.4]} 47.
Rd7 {[%clk 0:00:15.5]} 47... Ke4 {[%clk 0:01:03.4]} 48. a6 {[%clk 0:00:14.3]}
48... e5 {[%clk 0:01:01.7]} 49. a7 {[%clk 0:00:11.7]} 49... Ra1+ {[%clk
0:01:01.4]} 50. Kb5 {[%clk 0:00:11.2]} 50... f4 {[%clk 0:01:00.8]} 51. Kc4
{[%clk 0:00:11.7]} 51... f3 {[%clk 0:00:58.6]} 52. Rh7 {[%clk 0:00:11.3]} 52...
d2 {[%clk 0:00:57]} 53. Rh1 {[%clk 0:00:12.2]} 53... Rxa7 {[%clk 0:00:56.3]} 0-1

[Event "Late-Titled-Tuesday-Blitz-January-23-2024"]
[Site "Chess.com"]
[Date "2024.01.23"]
[Round "1"]
[White "FM_Kappeler"]
[Black "iulik86"]
[Result "0-1"]
[WhiteElo "2257"]
[BlackElo "2596"]
[TimeControl "180+1"]
[EndTime "14:07:01 PST"]
[Termination "iulik86 won on time"]

1. d4 {[%clk 0:02:57.5]} 1... d5 {[%clk 0:02:57.8]} 2. c4 {[%clk 0:02:56.9]}
2... e6 {[%clk 0:02:56.6]} 3. Nf3 {[%clk 0:02:54.3]} 3... Nf6 {[%clk 0:02:54.7]}
4. g3 {[%clk 0:02:53.9]} 4... Bb4+ {[%clk 0:02:52.8]} 5. Bd2 {[%clk 0:02:53.6]}
5... a5 {[%clk 0:02:53.1]} 6. Bg2 {[%clk 0:02:53.5]} 6... O-O {[%clk 0:02:52.4]}
7. O-O {[%clk 0:02:53.9]} 7... c5 {[%clk 0:02:50.6]} 8. cxd5 {[%clk 0:02:46.1]}
8... cxd4 {[%clk 0:02:49.8]} 9. dxe6 {[%clk 0:02:31]} 9... Bxe6 {[%clk
0:02:48.3]} 10. Bg5 {[%clk 0:02:23.1]} 10... Nc6 {[%clk 0:02:46.5]} 11. Nbd2
{[%clk 0:02:13.5]} 11... h6 {[%clk 0:02:42.8]} 12. Bxf6 {[%clk 0:02:07.8]} 12...
Qxf6 {[%clk 0:02:43.7]} 13. Ne4 {[%clk 0:02:01.2]} 13... Qg6 {[%clk 0:02:35.2]}
14. Nh4 {[%clk 0:01:56.1]} 14... Qh5 {[%clk 0:02:32.7]} 15. Rc1 {[%clk
0:01:39.6]} 15... Be7 {[%clk 0:02:26.5]} 16. Nf3 {[%clk 0:01:21.8]} 16... Rad8
{[%clk 0:02:22.9]} 17. a3 {[%clk 0:01:09.1]} 17... Qb5 {[%clk 0:02:20.4]} 18.
Qd2 {[%clk 0:01:06]} 18... Rfe8 {[%clk 0:02:16.4]} 19. Rfd1 {[%clk 0:00:53]}
19... Bb3 {[%clk 0:02:13]} 20. Re1 {[%clk 0:00:45.7]} 20... Bf8 {[%clk 0:02:13]}
21. Qf4 {[%clk 0:00:38]} 21... Bd5 {[%clk 0:02:08.6]} 22. Nh4 {[%clk 0:00:19.9]}
22... Qxb2 {[%clk 0:01:30.5]} 23. Nf5 {[%clk 0:00:19.7]} 23... Bxe4 {[%clk
0:01:14.7]} 24. Bxe4 {[%clk 0:00:18.7]} 24... Ne5 {[%clk 0:01:09.1]} 25. Rc7
{[%clk 0:00:14.5]} 25... Qb6 {[%clk 0:01:00.4]} 26. Nxh6+ {[%clk 0:00:13.5]}
26... Qxh6 {[%clk 0:00:58.8]} 27. Qf5 {[%clk 0:00:12.7]} 27... g6 {[%clk
0:00:53.1]} 28. Qf6 {[%clk 0:00:10.2]} 28... Qg7 {[%clk 0:00:50.7]} 29. Qb6
{[%clk 0:00:09.4]} 29... Nd7 {[%clk 0:00:45.3]} 30. Qxb7 {[%clk 0:00:07.7]}
30... Nc5 {[%clk 0:00:43.3]} 31. Rxc5 {[%clk 0:00:06]} 31... Bxc5 {[%clk
0:00:44.2]} 32. Bc6 {[%clk 0:00:05.5]} 32... Re7 {[%clk 0:00:42.6]} 33. Qb5
{[%clk 0:00:04.8]} 33... Bxa3 {[%clk 0:00:38.8]} 34. Qxa5 {[%clk 0:00:04.8]}
34... Bd6 {[%clk 0:00:38.5]} 35. Qxd8+ {[%clk 0:00:04.3]} 35... Kh7 {[%clk
0:00:31.9]} 36. Qxd6 {[%clk 0:00:04.3]} 36... Re6 {[%clk 0:00:32.4]} 37. Qc5
{[%clk 0:00:02.6]} 37... d3 {[%clk 0:00:32.6]} 0-1

[Event "Late-Titled-Tuesday-Blitz-January-23-2024"]
[Site "Chess.com"]
[Date "2024.01.23"]
[Round "1"]
[White "brunomorado"]
[Black "rychessmaster1"]
[Result "0-1"]
[WhiteElo "2405"]
[BlackElo "2728"]
[TimeControl "180+1"]
[EndTime "14:07:02 PST"]
[Termination "rychessmaster1 won by resignation"]

1. d4 {[%clk 0:03:00.7]} 1... Nf6 {[%clk 0:02:59.6]} 2. Nc3 {[%clk 0:03:01.6]}
2... d5 {[%clk 0:02:59.3]} 3. Bg5 {[%clk 0:03:01.4]} 3... Nbd7 {[%clk
0:02:58.8]} 4. Qd3 {[%clk 0:03:01.2]} 4... c6 {[%clk 0:02:51.4]} 5. f3 {[%clk
0:03:01.1]} 5... e5 {[%clk 0:02:38.6]} 6. dxe5 {[%clk 0:03:00.8]} 6... Nxe5
{[%clk 0:02:38.9]} 7. Qd4 {[%clk 0:03:01.4]} 7... Ng6 {[%clk 0:02:24.5]} 8. e4
{[%clk 0:02:59.5]} 8... Be7 {[%clk 0:02:17.3]} 9. O-O-O {[%clk 0:02:32.8]} 9...
Be6 {[%clk 0:01:56.4]} 10. e5 {[%clk 0:02:18.2]} 10... Nd7 {[%clk 0:01:56.2]}
11. Bxe7 {[%clk 0:02:17.8]} 11... Nxe7 {[%clk 0:01:54.3]} 12. f4 {[%clk
0:02:14.8]} 12... Qb6 {[%clk 0:01:37.2]} 13. Qxb6 {[%clk 0:02:04.3]} 13... axb6
{[%clk 0:01:37.6]} 14. Nf3 {[%clk 0:02:00.5]} 14... O-O {[%clk 0:01:22.8]} 15.
h3 {[%clk 0:01:38.4]} 15... h5 {[%clk 0:00:57.8]} 16. Rg1 {[%clk 0:01:23]} 16...
Ng6 {[%clk 0:00:57]} 17. g3 {[%clk 0:01:13.6]} 17... Nc5 {[%clk 0:00:54.6]} 18.
a3 {[%clk 0:01:03.9]} 18... Rfe8 {[%clk 0:00:46.2]} 19. Bd3 {[%clk 0:01:02.3]}
19... Nxd3+ {[%clk 0:00:45]} 20. cxd3 {[%clk 0:01:03.2]} 20... Bxh3 {[%clk
0:00:45.2]} 21. d4 {[%clk 0:00:43.8]} 21... Ne7 {[%clk 0:00:42]} 22. Rd3 {[%clk
0:00:24.6]} 22... f6 {[%clk 0:00:31.3]} 23. Nd1 {[%clk 0:00:17]} 23... Bf5
{[%clk 0:00:21.6]} 24. Rc3 {[%clk 0:00:16.5]} 24... Be4 {[%clk 0:00:19.9]} 25.
Nf2 {[%clk 0:00:15.9]} 25... Nf5 {[%clk 0:00:18.7]} 26. Rd1 {[%clk 0:00:08.8]}
26... Ra4 {[%clk 0:00:16.4]} 27. exf6 {[%clk 0:00:06.7]} 27... gxf6 {[%clk
0:00:16.1]} 28. Nxe4 {[%clk 0:00:06.4]} 28... dxe4 {[%clk 0:00:14.1]} 29. Nh4
{[%clk 0:00:06.6]} 29... Nxd4 {[%clk 0:00:12]} 30. f5 {[%clk 0:00:06.5]} 30...
Ne2+ {[%clk 0:00:11.2]} 0-1

[Event "Late-Titled-Tuesday-Blitz-January-23-2024"]
[Site "Chess.com"]
[Date "2024.01.23"]
[Round "1"]
[White "alexgo05"]
[Black "Thjop"]
[Result "0-1"]
[WhiteElo "2331"]
[BlackElo "2641"]
[TimeControl "180+1"]
[EndTime "14:07:02 PST"]
[Termination "Thjop won by resignation"]

1. Nf3 {[%clk 0:02:59.4]} 1... Nf6 {[%clk 0:03:00.1]} 2. b3 {[%clk 0:02:58]}
2... d6 {[%clk 0:02:59.5]} 3. Bb2 {[%clk 0:02:57.3]} 3... e5 {[%clk 0:02:59.7]}
4. e3 {[%clk 0:02:56.5]} 4... g6 {[%clk 0:02:59.5]} 5. d4 {[%clk 0:02:55.7]}
5... e4 {[%clk 0:02:59.7]} 6. Nfd2 {[%clk 0:02:55.5]} 6... Bg7 {[%clk
0:03:00.3]} 7. c4 {[%clk 0:02:52]} 7... O-O {[%clk 0:03:00.1]} 8. Nc3 {[%clk
0:02:52.2]} 8... Re8 {[%clk 0:03:00.1]} 9. Be2 {[%clk 0:02:51.5]} 9... h5 {[%clk
0:03:00]} 10. Qc2 {[%clk 0:02:49.7]} 10... Bf5 {[%clk 0:02:59.6]} 11. h3 {[%clk
0:02:45]} 11... h4 {[%clk 0:02:50.1]} 12. O-O-O {[%clk 0:02:43]} 12... Nc6
{[%clk 0:02:49.7]} 13. Nf1 {[%clk 0:02:40.5]} 13... g5 {[%clk 0:02:41.7]} 14. a3
{[%clk 0:02:37]} 14... Bg6 {[%clk 0:02:38.3]} 15. g3 {[%clk 0:02:29.9]} 15... a5
{[%clk 0:02:23.8]} 16. gxh4 {[%clk 0:02:25.9]} 16... gxh4 {[%clk 0:02:24.7]} 17.
Nh2 {[%clk 0:02:19.5]} 17... Ne7 {[%clk 0:02:14]} 18. Rhg1 {[%clk 0:02:17.4]}
18... c6 {[%clk 0:02:13]} 19. Ng4 {[%clk 0:02:15.3]} 19... d5 {[%clk 0:02:01.7]}
20. c5 {[%clk 0:01:44.3]} 20... Nxg4 {[%clk 0:01:53.4]} 21. Rxg4 {[%clk
0:01:43.3]} 21... Bf6 {[%clk 0:01:53.6]} 22. Rdg1 {[%clk 0:01:38.5]} 22... Kg7
{[%clk 0:01:50.3]} 23. Bd1 {[%clk 0:01:13.5]} 23... Rh8 {[%clk 0:01:48.9]} 24.
Ne2 {[%clk 0:01:13.8]} 24... Kf8 {[%clk 0:01:44.9]} 25. Nf4 {[%clk 0:01:10.4]}
25... Bf5 {[%clk 0:01:44.5]} 26. R4g2 {[%clk 0:01:09.8]} 26... Ke8 {[%clk
0:01:41.7]} 27. Bg4 {[%clk 0:00:50]} 27... Qd7 {[%clk 0:01:33.1]} 28. Kb1 {[%clk
0:00:43.8]} 28... Kd8 {[%clk 0:01:28.7]} 29. Bc3 {[%clk 0:00:42.4]} 29... Bxg4
{[%clk 0:01:22.7]} 30. hxg4 {[%clk 0:00:41.5]} 30... Bg5 {[%clk 0:01:19.3]} 31.
Qd2 {[%clk 0:00:38.8]} 31... a4 {[%clk 0:01:18.9]} 32. Ba5+ {[%clk 0:00:34.4]}
32... Ke8 {[%clk 0:01:18.4]} 33. bxa4 {[%clk 0:00:33.1]} 33... f6 {[%clk
0:01:10.3]} 34. Nh3 {[%clk 0:00:32.5]} 34... Kf7 {[%clk 0:01:08.4]} 35. Nxg5+
{[%clk 0:00:28]} 35... fxg5 {[%clk 0:01:08.6]} 36. f3 {[%clk 0:00:28]} 36...
exf3 {[%clk 0:01:08.5]} 37. Rf2 {[%clk 0:00:28.2]} 37... Kg7 {[%clk 0:01:03.7]}
38. Rxf3 {[%clk 0:00:26.4]} 38... Qe6 {[%clk 0:01:00.5]} 39. Ka2 {[%clk
0:00:24.2]} 39... Rhf8 {[%clk 0:00:58.9]} 40. Rgf1 {[%clk 0:00:20.5]} 40... Rxf3
{[%clk 0:00:58.7]} 41. Rxf3 {[%clk 0:00:21.4]} 41... Rf8 {[%clk 0:00:53.6]} 42.
Rxf8 {[%clk 0:00:20.7]} 42... Kxf8 {[%clk 0:00:54.5]} 43. Qf2+ {[%clk
0:00:20.7]} 43... Kg7 {[%clk 0:00:52.2]} 44. Bc7 {[%clk 0:00:19.5]} 44... Ng6
{[%clk 0:00:52.2]} 45. Qf5 {[%clk 0:00:15.6]} 45... Qxf5 {[%clk 0:00:50.4]} 46.
gxf5 {[%clk 0:00:16]} 46... Ne7 {[%clk 0:00:50.2]} 47. Be5+ {[%clk 0:00:15.3]}
47... Kf7 {[%clk 0:00:50.6]} 48. Kb3 {[%clk 0:00:15.4]} 48... Nxf5 {[%clk
0:00:50.2]} 49. Kb4 {[%clk 0:00:16.3]} 49... Nxe3 {[%clk 0:00:49.7]} 50. Ka5
{[%clk 0:00:16.8]} 50... Nc4+ {[%clk 0:00:49.9]} 51. Kb4 {[%clk 0:00:14.2]}
51... Nxe5 {[%clk 0:00:48.5]} 0-1

[Event "Late-Titled-Tuesday-Blitz-January-23-2024"]
[Site "Chess.com"]
[Date "2024.01.23"]
[Round "1"]
[White "Filipets"]
[Black "familijatop71"]
[Result "1-0"]
[WhiteElo "2596"]
[BlackElo "2261"]
[TimeControl "180+1"]
[EndTime "14:07:03 PST"]
[Termination "Filipets won by resignation"]

1. e4 {[%clk 0:03:00.9]} 1... d5 {[%clk 0:02:59.8]} 2. exd5 {[%clk 0:02:57.8]}
2... Qxd5 {[%clk 0:03:00.7]} 3. Nc3 {[%clk 0:02:43]} 3... Qa5 {[%clk 0:03:00.1]}
4. d4 {[%clk 0:02:42.3]} 4... c6 {[%clk 0:02:59.8]} 5. Bc4 {[%clk 0:02:40.8]}
5... Nf6 {[%clk 0:03:00.3]} 6. Nf3 {[%clk 0:02:38.9]} 6... Bf5 {[%clk
0:03:00.3]} 7. O-O {[%clk 0:02:38.5]} 7... e6 {[%clk 0:03:00]} 8. Bb3 {[%clk
0:02:35]} 8... Bb4 {[%clk 0:02:59.6]} 9. Bd2 {[%clk 0:02:33.4]} 9... Nbd7 {[%clk
0:02:54.5]} 10. a3 {[%clk 0:02:32.7]} 10... Bxc3 {[%clk 0:02:54.8]} 11. Bxc3
{[%clk 0:02:33.4]} 11... Qc7 {[%clk 0:02:55.2]} 12. Qe2 {[%clk 0:02:31.7]} 12...
O-O {[%clk 0:02:54.6]} 13. Rad1 {[%clk 0:02:29.4]} 13... a5 {[%clk 0:02:51.5]}
14. a4 {[%clk 0:02:20.9]} 14... Rad8 {[%clk 0:02:46.4]} 15. Ne5 {[%clk
0:02:18.5]} 15... Nxe5 {[%clk 0:02:44.8]} 16. dxe5 {[%clk 0:02:19.4]} 16... Ne4
{[%clk 0:02:40.8]} 17. Rxd8 {[%clk 0:02:15.3]} 17... Rxd8 {[%clk 0:02:39.1]} 18.
f3 {[%clk 0:02:07.3]} 18... Qb6+ {[%clk 0:02:02.5]} 19. Kh1 {[%clk 0:02:04.7]}
19... Nxc3 {[%clk 0:01:59.9]} 20. bxc3 {[%clk 0:02:05.6]} 20... Qc5 {[%clk
0:01:47.7]} 21. Rd1 {[%clk 0:01:57.4]} 21... Rxd1+ {[%clk 0:01:43.9]} 22. Qxd1
{[%clk 0:01:58.3]} 22... h6 {[%clk 0:01:36.2]} 23. Qd4 {[%clk 0:01:57.4]} 23...
Qxd4 {[%clk 0:01:01]} 24. cxd4 {[%clk 0:01:58.3]} 24... Kf8 {[%clk 0:00:59.7]}
25. Kg1 {[%clk 0:01:56.2]} 25... Ke7 {[%clk 0:00:59.4]} 26. Kf2 {[%clk
0:01:55.7]} 26... b5 {[%clk 0:00:58.8]} 27. Ke3 {[%clk 0:01:47.1]} 27... Kd7
{[%clk 0:00:55.2]} 28. g4 {[%clk 0:01:44.8]} 28... Bg6 {[%clk 0:00:53.8]} 29. h4
{[%clk 0:01:45]} 29... Kc7 {[%clk 0:00:42.6]} 30. f4 {[%clk 0:01:41.1]} 30...
Kb6 {[%clk 0:00:40.5]} 31. f5 {[%clk 0:01:29.7]} 31... exf5 {[%clk 0:00:36.8]}
32. h5 {[%clk 0:01:29.7]} 32... Bh7 {[%clk 0:00:30.6]} 33. Bxf7 {[%clk
0:01:27.8]} 33... Kc7 {[%clk 0:00:20.3]} 34. gxf5 {[%clk 0:01:20]} 34... Bxf5
{[%clk 0:00:19.7]} 35. Bb3 {[%clk 0:01:19.9]} 35... Bg4 {[%clk 0:00:17]} 36. c4
{[%clk 0:01:16.2]} 36... bxc4 {[%clk 0:00:11.2]} 37. Bxc4 {[%clk 0:01:17.1]}
37... Bxh5 {[%clk 0:00:10.5]} 38. Kf4 {[%clk 0:01:03.4]} 38... Bd1 {[%clk
0:00:10.6]} 39. Kf5 {[%clk 0:01:03.1]} 39... Bxa4 {[%clk 0:00:10.3]} 40. Ke6
{[%clk 0:01:03.1]} 40... h5 {[%clk 0:00:06.3]} 41. Kf7 {[%clk 0:01:01.9]} 41...
h4 {[%clk 0:00:06]} 42. e6 {[%clk 0:01:00.6]} 42... h3 {[%clk 0:00:03.7]} 43. e7
{[%clk 0:01:00.8]} 43... c5 {[%clk 0:00:04.3]} 44. dxc5 {[%clk 0:00:55.7]} 44...
h2 {[%clk 0:00:03.8]} 45. Bd5 {[%clk 0:00:56.3]} 45... Bb5 {[%clk 0:00:01.9]}
46. c6 {[%clk 0:00:53]} 46... Bxc6 {[%clk 0:00:02]} 47. Bxc6 {[%clk 0:00:52.4]}
47... a4 {[%clk 0:00:02.4]} 48. e8=Q {[%clk 0:00:51.9]} 1-0

[Event "Late-Titled-Tuesday-Blitz-January-23-2024"]
[Site "Chess.com"]
[Date "2024.01.23"]
[Round "1"]
[White "koziororo"]
[Black "Maect19"]
[Result "0-1"]
[WhiteElo "2603"]
[BlackElo "2324"]
[TimeControl "180+1"]
[EndTime "14:07:04 PST"]
[Termination "Maect19 won by resignation"]

1. e4 {[%clk 0:02:51.6]} 1... e6 {[%clk 0:02:59.9]} 2. Nc3 {[%clk 0:02:51.9]}
2... d5 {[%clk 0:02:55.7]} 3. Qe2 {[%clk 0:02:52.5]} 3... dxe4 {[%clk
0:02:54.6]} 4. Nxe4 {[%clk 0:02:53.4]} 4... Bd7 {[%clk 0:02:54.4]} 5. g3 {[%clk
0:02:52.3]} 5... Bc6 {[%clk 0:02:54.2]} 6. Bg2 {[%clk 0:02:51.1]} 6... Nd7
{[%clk 0:02:54.6]} 7. d4 {[%clk 0:02:50.5]} 7... Bxe4 {[%clk 0:02:50.7]} 8. Bxe4
{[%clk 0:02:50.2]} 8... c6 {[%clk 0:02:51.3]} 9. c3 {[%clk 0:02:50]} 9... Ngf6
{[%clk 0:02:51.7]} 10. Bg2 {[%clk 0:02:49.7]} 10... Be7 {[%clk 0:02:51.9]} 11.
Nf3 {[%clk 0:02:50]} 11... O-O {[%clk 0:02:51.6]} 12. O-O {[%clk 0:02:50.6]}
12... a5 {[%clk 0:02:50.2]} 13. Bd2 {[%clk 0:02:45.6]} 13... Qb6 {[%clk
0:02:49.6]} 14. b3 {[%clk 0:02:40.8]} 14... Rfd8 {[%clk 0:02:49]} 15. Rfe1
{[%clk 0:02:34.5]} 15... Nf8 {[%clk 0:02:48.7]} 16. Ne5 {[%clk 0:02:32.1]} 16...
Ng6 {[%clk 0:02:46.8]} 17. Nc4 {[%clk 0:02:26.5]} 17... Qc7 {[%clk 0:02:40.9]}
18. h4 {[%clk 0:02:27.2]} 18... b5 {[%clk 0:02:18.7]} 19. Ne5 {[%clk 0:02:22.9]}
19... Nxe5 {[%clk 0:02:18.5]} 20. Qxe5 {[%clk 0:02:23.8]} 20... Qxe5 {[%clk
0:02:15.4]} 21. Rxe5 {[%clk 0:02:24.7]} 21... Rac8 {[%clk 0:02:10.3]} 22. Re2
{[%clk 0:02:13.1]} 22... b4 {[%clk 0:02:07.1]} 23. Rc1 {[%clk 0:02:09.6]} 23...
bxc3 {[%clk 0:01:58.5]} 24. Bxc3 {[%clk 0:02:10.5]} 24... Bb4 {[%clk 0:01:52.3]}
25. Bxb4 {[%clk 0:02:08.8]} 25... axb4 {[%clk 0:01:52]} 26. Rc4 {[%clk
0:02:04.8]} 26... Nd5 {[%clk 0:01:42.4]} 27. Rec2 {[%clk 0:02:03.6]} 27... Ne7
{[%clk 0:01:28.6]} 28. Rxb4 {[%clk 0:02:00.2]} 28... h6 {[%clk 0:01:25.7]} 29.
a4 {[%clk 0:01:55.6]} 29... Rb8 {[%clk 0:01:25.2]} 30. Rxb8 {[%clk 0:01:50.6]}
30... Rxb8 {[%clk 0:01:25.8]} 31. Rb2 {[%clk 0:01:40.7]} 31... Rb4 {[%clk
0:01:23.4]} 32. a5 {[%clk 0:01:41]} 32... Rxd4 {[%clk 0:01:21.4]} 33. a6 {[%clk
0:01:41.6]} 33... Rd1+ {[%clk 0:01:21.1]} 34. Kh2 {[%clk 0:01:41.4]} 34... Ra1
{[%clk 0:01:21.4]} 35. Rd2 {[%clk 0:01:36.4]} 35... Rxa6 {[%clk 0:01:17.9]} 36.
Rd7 {[%clk 0:01:36.6]} 36... Nd5 {[%clk 0:01:15.7]} 37. Rb7 {[%clk 0:01:33.8]}
37... Ra2 {[%clk 0:01:13.9]} 38. Kg1 {[%clk 0:01:33.3]} 38... Ra1+ {[%clk
0:01:13.2]} 39. Kh2 {[%clk 0:01:33.6]} 39... Ra2 {[%clk 0:01:13.3]} 40. Bxd5
{[%clk 0:01:28]} 40... cxd5 {[%clk 0:01:05.1]} 41. Kg2 {[%clk 0:01:28.6]} 41...
Rb2 {[%clk 0:01:04.4]} 42. Kf3 {[%clk 0:01:28.7]} 42... g6 {[%clk 0:01:03.7]}
43. h5 {[%clk 0:01:27.1]} 43... gxh5 {[%clk 0:01:02.5]} 44. Ke3 {[%clk
0:01:27.7]} 44... Kg7 {[%clk 0:01:02.2]} 45. f4 {[%clk 0:01:25.6]} 45... Kf6
{[%clk 0:01:00.8]} 46. Kf3 {[%clk 0:01:26]} 46... Kg6 {[%clk 0:00:55.5]} 47. Rb6
{[%clk 0:01:23.2]} 47... Kf5 {[%clk 0:00:54.1]} 48. Rb8 {[%clk 0:01:14.7]} 48...
f6 {[%clk 0:00:51.4]} 49. Rb5 {[%clk 0:01:14.8]} 49... Rc2 {[%clk 0:00:49.2]}
50. Rb8 {[%clk 0:01:12.7]} 50... Rc3+ {[%clk 0:00:49.2]} 51. Kg2 {[%clk
0:01:12.7]} 51... Ke4 {[%clk 0:00:45.8]} 52. b4 {[%clk 0:01:10.1]} 52... e5
{[%clk 0:00:43.5]} 53. fxe5 {[%clk 0:01:07.1]} 53... fxe5 {[%clk 0:00:44.1]} 54.
b5 {[%clk 0:01:07.4]} 54... Rc2+ {[%clk 0:00:44.3]} 55. Kf1 {[%clk 0:01:02.2]}
55... Rb2 {[%clk 0:00:44.6]} 56. b6 {[%clk 0:01:01]} 56... Kf3 {[%clk
0:00:38.7]} 57. Ke1 {[%clk 0:01:00.7]} 57... Ke3 {[%clk 0:00:38.5]} 58. Kd1
{[%clk 0:01:00.5]} 58... d4 {[%clk 0:00:38.9]} 59. b7 {[%clk 0:00:58.6]} 59...
e4 {[%clk 0:00:37.5]} 60. Kc1 {[%clk 0:00:57]} 60... Rb4 {[%clk 0:00:35.5]} 61.
Kc2 {[%clk 0:00:56.4]} 61... d3+ {[%clk 0:00:33.5]} 62. Kc3 {[%clk 0:00:56.8]}
62... Rb1 {[%clk 0:00:33.5]} 0-1

[Event "Late-Titled-Tuesday-Blitz-January-23-2024"]
[Site "Chess.com"]
[Date "2024.01.23"]
[Round "1"]
[White "annasargsyan_m"]
[Black "LevonAronian"]
[Result "0-1"]
[WhiteElo "2539"]
[BlackElo "3102"]
[TimeControl "180+1"]
[EndTime "14:07:05 PST"]
[Termination "LevonAronian won on time"]

1. e4 {[%clk 0:03:00.9]} 1... c5 {[%clk 0:02:57.6]} 2. Nf3 {[%clk 0:03:00.7]}
2... e6 {[%clk 0:02:57.6]} 3. d4 {[%clk 0:02:59.1]} 3... cxd4 {[%clk 0:02:57.9]}
4. Nxd4 {[%clk 0:03:00]} 4... Nc6 {[%clk 0:02:58.4]} 5. Nc3 {[%clk 0:02:54]}
5... Qc7 {[%clk 0:02:58.3]} 6. Be3 {[%clk 0:02:54.6]} 6... a6 {[%clk 0:02:58]}
7. Qf3 {[%clk 0:02:55.2]} 7... Nf6 {[%clk 0:02:57.3]} 8. O-O-O {[%clk 0:02:55]}
8... Ne5 {[%clk 0:02:55.9]} 9. Qg3 {[%clk 0:02:50.5]} 9... b5 {[%clk 0:02:50.2]}
10. f4 {[%clk 0:02:05.8]} 10... Neg4 {[%clk 0:02:43.8]} 11. e5 {[%clk
0:02:05.8]} 11... Nxe3 {[%clk 0:02:13.2]} 12. Qxe3 {[%clk 0:02:05.5]} 12... b4
{[%clk 0:02:08.6]} 13. Ncb5 {[%clk 0:01:46]} 13... axb5 {[%clk 0:02:06.3]} 14.
Nxb5 {[%clk 0:01:46.9]} 14... Qb8 {[%clk 0:01:34.2]} 15. exf6 {[%clk 0:01:43.8]}
15... gxf6 {[%clk 0:01:35.1]} 16. Kb1 {[%clk 0:01:32]} 16... Ra5 {[%clk
0:01:33.5]} 17. Qd3 {[%clk 0:01:04.2]} 17... d5 {[%clk 0:01:25.4]} 18. Qd4
{[%clk 0:00:55.4]} 18... Rxb5 {[%clk 0:01:22.1]} 19. Bxb5+ {[%clk 0:00:55.5]}
19... Qxb5 {[%clk 0:01:21.8]} 20. Qxf6 {[%clk 0:00:55.8]} 20... Rg8 {[%clk
0:01:22.1]} 21. f5 {[%clk 0:00:48.3]} 21... Rxg2 {[%clk 0:01:18.9]} 22. fxe6
{[%clk 0:00:45.6]} 22... Bxe6 {[%clk 0:01:17.8]} 23. Rhe1 {[%clk 0:00:45.5]}
23... Qc6 {[%clk 0:01:12.8]} 24. Rc1 {[%clk 0:00:29.5]} 24... Bg7 {[%clk
0:01:10.9]} 25. Qf3 {[%clk 0:00:28]} 25... Rg6 {[%clk 0:01:09.3]} 26. h4 {[%clk
0:00:26.1]} 26... Kf8 {[%clk 0:00:55.2]} 27. h5 {[%clk 0:00:26.2]} 27... Rg4
{[%clk 0:00:46]} 28. Rf1 {[%clk 0:00:20.9]} 28... h6 {[%clk 0:00:39.2]} 29. Rce1
{[%clk 0:00:19.6]} 29... Kg8 {[%clk 0:00:32.3]} 30. Qf2 {[%clk 0:00:11.6]} 30...
Kh8 {[%clk 0:00:25.9]} 31. Qa7 {[%clk 0:00:08.5]} 31... Rg2 {[%clk 0:00:20.1]}
32. Rc1 {[%clk 0:00:04.9]} 32... Qc4 {[%clk 0:00:16.6]} 0-1